fUSD/lending_fUSD_20250522
["ID","MTS","AMOUNT","RATE_DAILY","PERIOD"]
[361953141,1747907447983,-487.06,0.00032876,5]
[361953143,1747907447995,-420.0,0.00032876,5]
[361953146,1747907448007,-420.0,0.00032876,5]
[361953148,1747907448018,-1411.54,0.00032876,5]
[361953150,1747907448031,-1134.19,0.00032876,5]
[361953152,1747907448044,-1040.97,0.00032876,5]
[361953155,1747907448060,-877.7,0.00032876,5]
[361953157,1747907448073,-420.0,0.00032876,5]
[361953159,1747907448084,-420.0,0.00032876,5]
[361953161,1747907448095,-420.0,0.00032876,5]
[361953164,1747907448106,-420.0,0.00032876,5]
[361953166,1747907448120,-420.0,0.00032876,5]
[361953168,1747907448134,-901.08,0.00032876,5]
[361953171,1747907448146,-444.95,0.00032876,5]
[361953173,1747907448158,-239.78345832,0.00032876,5]
[361953175,1747907448170,-420.0,0.00032876,5]
[361953177,1747907448183,-420.0,0.00032876,5]
[361953179,1747907448194,-151.0,0.00032876,7]
[361953182,1747907448206,-420.0,0.00032876,5]
[361953184,1747907448217,-151.0,0.00032876,7]
[361953186,1747907448229,-152.368542,0.00032876,7]
[361953188,1747907448241,-420.0,0.00032876,5]
[361953191,1747907448261,-420.0,0.00032876,5]
[361953193,1747907448273,-419.46409406,0.00032876,5]
[361953196,1747907448284,-532.61,0.00032876,5]
[361953198,1747907448296,-674.341734,0.00032876,7]
[361953200,1747907448307,-674.341734,0.00032876,7]
[361953202,1747907448319,-420.0,0.00032876,5]
[361953204,1747907448330,-151.0,0.00032876,7]
[361953206,1747907448341,-151.0,0.00032876,7]
[361953209,1747907448354,-222.2580902,0.00032876,7]
[361953767,1747908060612,-1000.0,0.00042393,2]
[361953770,1747908479097,-250.0,0.00015,2]
[361953776,1747908547121,-300.0,0.00017,2]
[361953777,1747908547146,-350.0,0.00019,2]
[361953778,1747908547168,-200.0,0.0002151,2]
[361953779,1747908547190,-200.0,0.000231,2]
[361953780,1747908547211,-200.0,0.0002351,2]
[361953781,1747908547234,-216.0,0.000251,2]
[361953782,1747908547256,-200.0,0.0002551,2]
[361953783,1747908547278,-86.82214156,0.0002751,2]
[361953799,1747908631955,-113.17785844,0.0002751,2]
[361953800,1747908631964,-162.4724832,0.0002985,2]
[361953801,1747908631984,-921.348,0.0002985,2]
[361953802,1747908631996,-538.67200498,0.0002985,2]
[361953803,1747908632019,-170.88309582,0.0002985,2]
[361953804,1747908632029,-1059.48835587,0.0003,30]
[361954320,1747908637693,-1153.86737547,0.0003,30]
[361954322,1747908637705,-459.13262453,0.0003,30]
[361954327,1747908637747,-327.51164413,0.0003,30]
[361954329,1747908637756,-204.0,0.00030149,2]
[361954331,1747908637765,-207.4,0.00030806,2]
[361954333,1747908637779,-1600.0,0.00030952,2]
[361954335,1747908637791,-300.0,0.00030952,2]
[361954337,1747908637800,-23900.0,0.00030953,2]
[361954339,1747908637809,-66.95815587,0.00030999,2]
[361954341,1747908637820,-83.04184413,0.00030999,2]
[361954343,1747908637830,-448.75262187,0.00031,2]
[361954346,1747908637845,-38.1199753,0.00031,2]
[361954348,1747908637854,-277.14,0.00031013,2]
[361954350,1747908637863,-281.87,0.00031177,2]
[361954352,1747908637872,-250.0,0.00031221,2]
[361954354,1747908637881,-221.41,0.0003126,2]
[361954356,1747908637891,-150.56,0.00031363,2]
[361954358,1747908637900,-1000.0,0.00031469,2]
[361954360,1747908637910,-222.16,0.00031483,120]
[361954362,1747908637919,-493.5,0.00031599,2]
[361954364,1747908637928,-150.0,0.00031736,7]
[361954366,1747908637937,-275.94,0.00031776,2]
[361954368,1747908637946,-1211.1,0.00031815,2]
[361954370,1747908637958,-170.31,0.00031876,2]
[361954372,1747908637969,-206.22608619,0.000319,25]
[361954374,1747908637978,-8833.34143851,0.00031999,10]
[361954376,1747908637990,-1912.9,0.00031999,10]
[361954378,1747908638000,-24450.83315515,0.00031999,10]
[361954380,1747908638009,-1757.18,0.00032055,2]
[361954382,1747908638019,-458.34,0.00032055,2]
[361954384,1747908638028,-458.34,0.00032055,2]
[361954386,1747908638037,-215.0738,0.00032175,2]
[361954388,1747908638047,-150.0,0.00032369,2]
[361954390,1747908638056,-237.0,0.000325,2]
[361954392,1747908638065,-375.0,0.000325,2]
[361954393,1747908638075,-206.22608611,0.00032525,27]
[361954394,1747908638083,-2062.0737634,0.00032756,2]
[361954395,1747908638092,-165.64842971,0.00032756,2]
[361954396,1747908638101,-2340.1417,0.00032766,2]
[361954397,1747908638111,-1060.678,0.00032766,2]
[361954398,1747908638120,-531.33879363,0.00032766,2]
[361954399,1747908638132,-13319.08690637,0.00032766,2]
[361954400,1747908638141,-1000.0,0.00032766,2]
[361954401,1747908638151,-455.8299,0.00032766,2]
[361954402,1747908638159,-158.20899766,0.00032766,2]
[361954403,1747908638169,-181.274,0.0003277,33]
[361954404,1747908638178,-711.58587044,0.0003277,33]
[361954405,1747908638197,-1810.82212956,0.0003277,33]
[361954406,1747908638206,-159.26458581,0.00032776,15]
[361954407,1747908638216,-1037.76463677,0.00032776,2]
[361954408,1747908638225,-20920.82174651,0.00032798,31]
[361954954,1747908642861,-9079.86270351,0.00032798,31]
[361954956,1747908642870,-24670.60849162,0.000328,77]
[361954959,1747908642893,-25329.39150838,0.000328,77]
[361954961,1747908642901,-193.19,0.00032846,2]
[361954963,1747908642911,-193.19,0.00032846,2]
[361954966,1747908642920,-49292.7092055,0.00032856,2]
[361954968,1747908642929,-193.19,0.00032856,2]
[361954970,1747908642938,-193.19,0.00032856,2]
[361954972,1747908642947,-193.19,0.00032856,2]
[361954974,1747908642956,-193.19,0.00032856,2]
[361954976,1747908642965,-193.19,0.00032856,2]
[361954978,1747908642975,-150.48454346,0.0003286,2]
[361954980,1747908642984,-500.0,0.0003286,2]
[361954982,1747908642993,-261.27747531,0.0003286,2]
[361954984,1747908643002,-500.0,0.0003286,2]
[361954986,1747908643011,-500.0,0.0003286,2]
[361954988,1747908643021,-156.6960042,0.00032862,2]
[361955013,1747908643228,-500.0,0.00032865,2]
[361955015,1747908643243,-500.0,0.00032865,2]
[361955017,1747908643253,-438.37986925,0.00032865,2]
[361955019,1747908643262,-500.0,0.00032865,2]
[361955021,1747908643273,-500.0,0.00032865,2]
[361955023,1747908643283,-83800.05993092,0.00032866,2]
[361955026,1747908643303,-396.359999,0.00032866,2]
[361955028,1747908643314,-17675.17909508,0.00032866,2]
[361955031,1747908643324,-1928.75223168,0.00032866,2]
[361955033,1747908643338,-209.18655194,0.00032866,2]
[361955034,1747908643347,-193.19,0.00032866,2]
[361955037,1747908643357,-193.19,0.00032866,2]
[361955038,1747908643367,-193.19,0.00032866,2]
[361955041,1747908643378,-500.0,0.00032873,5]
[361955043,1747908643388,-500.0,0.00032873,5]
[361955045,1747908643397,-500.0,0.00032873,5]
[361955047,1747908643406,-302.35007709,0.00032873,5]
[361955048,1747908643416,-800.0,0.00032876,12]
[361955050,1747908643425,-800.0,0.00032876,12]
[361955052,1747908643435,-800.0,0.00032876,12]
[361955054,1747908643444,-800.0,0.00032876,12]
[361955056,1747908643453,-800.0,0.00032876,12]
[361955058,1747908643462,-800.0,0.00032876,12]
[361955060,1747908643472,-800.0,0.00032876,12]
[361955062,1747908643481,-800.0,0.00032876,12]
[361955064,1747908643491,-800.0,0.00032876,12]
[361955066,1747908643500,-800.0,0.00032876,12]
[361955068,1747908643510,-800.0,0.00032876,12]
[361955070,1747908643519,-800.0,0.00032876,12]
[361955072,1747908643528,-800.0,0.00032876,12]
[361955074,1747908643538,-800.0,0.00032876,12]
[361955076,1747908643547,-800.0,0.00032876,12]
[361955078,1747908643556,-800.0,0.00032876,12]
[361955080,1747908643566,-800.0,0.00032876,12]
[361955082,1747908643575,-800.0,0.00032876,12]
[361955084,1747908643586,-800.0,0.00032876,12]
[361955086,1747908643595,-800.0,0.00032876,12]
[361955088,1747908643604,-153.607196,0.00032876,7]
[361955090,1747908643614,-153.607196,0.00032876,7]
[361955092,1747908643623,-153.607196,0.00032876,7]
[361955094,1747908643632,-153.607196,0.00032876,7]
[361955096,1747908643642,-153.607196,0.00032876,7]
[361955098,1747908643651,-153.607196,0.00032876,7]
[361955100,1747908643660,-189.648848,0.00032876,7]
[361955102,1747908643670,-189.648848,0.00032876,7]
[361955104,1747908643680,-189.648848,0.00032876,7]
[361955106,1747908643690,-189.648848,0.00032876,7]
[361955107,1747908643699,-189.648848,0.00032876,7]
[361955108,1747908643708,-189.648848,0.00032876,7]
[361955109,1747908643720,-151.0,0.00032876,7]
[361955110,1747908643729,-189.648848,0.00032876,7]
[361955111,1747908643739,-151.0,0.00032876,7]
[361955112,1747908643748,-189.648848,0.00032876,7]
[361955113,1747908643758,-151.0,0.00032876,7]
[361955114,1747908643767,-151.0,0.00032876,7]
[361955115,1747908643776,-151.0,0.00032876,7]
[361955117,1747908643785,-151.0,0.00032876,7]
[361955119,1747908643794,-151.0,0.00032876,7]
[361955121,1747908643804,-151.0,0.00032876,7]
[361955123,1747908643813,-151.157638,0.00032876,7]
[361955125,1747908643823,-151.0,0.00032876,7]
[361955127,1747908643832,-151.0,0.00032876,7]
[361955129,1747908643841,-153.042757,0.00032876,7]
[361955131,1747908643850,-151.0,0.00032876,7]
[361955133,1747908643859,-151.0,0.00032876,7]
[361955135,1747908643869,-151.0,0.00032876,7]
[361955137,1747908643878,-153.100963,0.00032876,7]
[361955139,1747908643887,-151.0,0.00032876,7]
[361955141,1747908643896,-206.2718,0.00032876,7]
[361955143,1747908643905,-151.0,0.00032876,7]
[361955145,1747908643914,-151.0,0.00032876,7]
[361955147,1747908643923,-151.0,0.00032876,7]
[361955149,1747908643932,-151.0,0.00032876,7]
[361955151,1747908643941,-157.000998,0.00032876,7]
[361955153,1747908643950,-151.971432,0.00032876,7]
[361955155,1747908643959,-151.0,0.00032876,7]
[361955157,1747908643969,-155.08019,0.00032876,7]
[361955159,1747908643978,-151.0,0.00032876,7]
[361955161,1747908643989,-156.576652,0.00032876,7]
[361955163,1747908643998,-151.0,0.00032876,7]
[361955165,1747908644007,-258.724896,0.00032876,7]
[361955167,1747908644017,-288.868609,0.00032876,7]
[361955169,1747908644026,-198.767864,0.00032876,7]
[361955171,1747908644035,-153.055075,0.00032876,7]
[361955173,1747908644045,-151.433981,0.00032876,7]
[361955175,1747908644054,-151.0,0.00032876,7]
[361955177,1747908644063,-152.564093,0.00032876,7]
[361955179,1747908644072,-172.893429,0.00032876,7]
[361955181,1747908644081,-246.180842,0.00032876,7]
[361955183,1747908644091,-246.180842,0.00032876,7]
[361955185,1747908644102,-246.180842,0.00032876,7]
[361955187,1747908644111,-246.180842,0.00032876,7]
[361955189,1747908644121,-246.180842,0.00032876,7]
[361955191,1747908644130,-246.180842,0.00032876,7]
[361955193,1747908644139,-151.0,0.00032876,7]
[361955195,1747908644148,-151.0,0.00032876,7]
[361955197,1747908644157,-151.0,0.00032876,7]
[361955199,1747908644166,-154.327813,0.00032876,7]
[361955201,1747908644175,-151.0,0.00032876,7]
[361955203,1747908644184,-152.444334,0.00032876,7]
[361955205,1747908644194,-151.0,0.00032876,7]
[361955207,1747908644204,-185.508658,0.00032876,7]
[361955209,1747908644214,-151.0,0.00032876,7]
[361955211,1747908644223,-151.0,0.00032876,7]
[361955213,1747908644232,-151.0,0.00032876,7]
[361955215,1747908644241,-151.0,0.00032876,7]
[361955217,1747908644250,-151.0,0.00032876,7]
[361955219,1747908644259,-219.1782,0.00032876,7]
[361955221,1747908644268,-458.45715471,0.00032876,5]
[361955222,1747908644278,-151.0,0.00032876,7]
[361955225,1747908644288,-151.0,0.00032876,7]
[361955227,1747908644297,-455.97667447,0.00032876,5]
[361955228,1747908644306,-150.850085,0.00032876,5]
[361955231,1747908644316,-151.0,0.00032876,7]
[361955232,1747908644326,-420.0,0.00032876,5]
[361955235,1747908644338,-420.0,0.00032876,5]
[361955236,1747908644348,-420.0,0.00032876,5]
[361955238,1747908644357,-421.48814708,0.00032876,5]
[361955240,1747908644367,-420.0,0.00032876,5]
[361955242,1747908644376,-420.0,0.00032876,5]
[361955244,1747908644386,-420.0,0.00032876,5]
[361955246,1747908644395,-420.0,0.00032876,5]
[361955248,1747908644405,-151.0,0.00032876,7]
[361955250,1747908644415,-420.0,0.00032876,5]
[361955252,1747908644424,-151.0,0.00032876,7]
[361955254,1747908644434,-151.0,0.00032876,7]
[361955256,1747908644443,-420.0,0.00032876,5]
[361955258,1747908644452,-151.0,0.00032876,7]
[361955260,1747908644462,-500.0,0.00032876,5]
[361955262,1747908644472,-420.0,0.00032876,5]
[361955264,1747908644481,-515.58,0.00032876,5]
[361955266,1747908644490,-200.0,0.00032876,2]
[361955268,1747908644499,-420.0,0.00032876,5]
[361955270,1747908644509,-420.0,0.00032876,5]
[361955272,1747908644518,-719.74,0.00032876,5]
[361955274,1747908644528,-420.0,0.00032876,5]
[361955276,1747908644537,-151.0,0.00032876,7]
[361955278,1747908644546,-151.0,0.00032876,7]
[361955280,1747908644555,-896.73,0.00032876,5]
[361955282,1747908644564,-420.0,0.00032876,5]
[361955284,1747908644573,-1080.02,0.00032876,5]
[361955286,1747908644583,-189.299802,0.00032876,7]
[361955288,1747908644592,-414.88157596,0.00032876,5]
[361955290,1747908644602,-420.0,0.00032876,5]
[361955292,1747908644611,-663.22,0.00032876,5]
[361955294,1747908644621,-420.0,0.00032876,5]
[361955296,1747908644630,-786.81,0.00032876,5]
[361955298,1747908644640,-573.49,0.00032876,5]
[361955300,1747908644650,-420.0,0.00032876,5]
[361955302,1747908644662,-360.0,0.00032876,5]
[361955304,1747908644671,-623.48,0.00032876,5]
[361955306,1747908644680,-420.0,0.00032876,5]
[361955308,1747908644690,-464.73,0.00032876,5]
[361955310,1747908644700,-466.053638,0.00032876,7]
[361955312,1747908644709,-466.053638,0.00032876,7]
[361955314,1747908644718,-420.0,0.00032876,5]
[361955316,1747908644728,-1013.48075979,0.00032876,5]
[361955320,1747908644753,-210.32924021,0.00032876,5]
[361955322,1747908644763,-421.2,0.00032876,5]
[361955324,1747908644772,-559.87,0.00032876,5]
[361955326,1747908644781,-466.053638,0.00032876,7]
[361955328,1747908644791,-422.49872179,0.00032876,7]
[361955330,1747908644803,-43.55491621,0.00032876,7]
[361955332,1747908644813,-420.0,0.00032876,5]
[361955334,1747908644823,-420.0,0.00032876,5]
[361955336,1747908644833,-594.97,0.00032876,5]
[361955339,1747908644843,-538.29,0.00032876,5]
[361955341,1747908644852,-1513.26,0.00032876,5]
[361955343,1747908644862,-420.0,0.00032876,5]
[361955345,1747908644872,-420.0,0.00032876,5]
[361955347,1747908644883,-420.0,0.00032876,5]
[361955349,1747908644892,-420.0,0.00032876,5]
[361955351,1747908644901,-151.0,0.00032876,7]
[361955353,1747908644911,-420.0,0.00032876,5]
[361955355,1747908644920,-151.0,0.00032876,7]
[361955357,1747908644930,-420.0,0.00032876,5]
[361955359,1747908644940,-420.0,0.00032876,5]
[361955361,1747908644949,-574.35,0.00032876,5]
[361955363,1747908644959,-420.0,0.00032876,5]
[361955365,1747908644969,-930.07,0.00032876,5]
[361955367,1747908644978,-1481.04,0.00032876,5]
[361955369,1747908644988,-420.0,0.00032876,5]
[361955371,1747908644998,-420.0,0.00032876,5]
[361955373,1747908645007,-593.53,0.00032876,5]
[361955375,1747908645017,-420.0,0.00032876,5]
[361955377,1747908645026,-420.0,0.00032876,5]
[361955379,1747908645035,-420.0,0.00032876,5]
[361955380,1747908645045,-498.49,0.00032876,5]
[361955381,1747908645054,-582.61,0.00032876,5]
[361955382,1747908645064,-62.46082745,0.00032876,5]
[361955383,1747908645090,-357.53917255,0.00032876,5]
[361955384,1747908645099,-420.0,0.00032876,5]
[361955385,1747908645109,-420.0,0.00032876,5]
[361955386,1747908645120,-424.12343412,0.00032876,5]
[361955387,1747908645129,-420.0,0.00032876,5]
[361955389,1747908645138,-420.0,0.00032876,5]
[361955391,1747908645147,-420.0,0.00032876,5]
[361955393,1747908645157,-420.0,0.00032876,5]
[361955395,1747908645166,-997.96,0.00032876,5]
[361955397,1747908645175,-151.0,0.00032876,7]
[361955399,1747908645185,-467.5,0.00032876,5]
[361955401,1747908645194,-151.0,0.00032876,7]
[361955403,1747908645204,-420.0,0.00032876,5]
[361955405,1747908645215,-420.0,0.00032876,5]
[361955407,1747908645224,-422.41868996,0.00032876,5]
[361955409,1747908645234,-1255.19,0.00032876,5]
[361955411,1747908645244,-423.00915774,0.00032876,5]
[361955413,1747908645254,-151.0,0.00032876,7]
[361955415,1747908645265,-151.0,0.00032876,7]
[361955417,1747908645275,-456.69,0.00032876,5]
[361955419,1747908645285,-155.815686,0.00032876,7]
[361955421,1747908645295,-186.04280576,0.00032876,5]
[361955423,1747908645306,-420.0,0.00032876,5]
[361955425,1747908645316,-151.0,0.00032876,7]
[361955427,1747908645326,-484.30190254,0.00032876,5]
[361955429,1747908645344,-1436.35,0.00032876,5]
[361955431,1747908645354,-420.0,0.00032876,5]
[361955433,1747908645364,-968.18,0.00032876,5]
[361955435,1747908645376,-1231.49,0.00032876,5]
[361955437,1747908645386,-420.0,0.00032876,5]
[361955439,1747908645396,-420.0,0.00032876,5]
[361955441,1747908645407,-420.0,0.00032876,5]
[361955443,1747908645418,-420.0,0.00032876,5]
[361955445,1747908645428,-420.0,0.00032876,5]
[361955447,1747908645438,-420.0,0.00032876,5]
[361955449,1747908645448,-897.84,0.00032876,5]
[361955451,1747908645459,-420.0,0.00032876,5]
[361955453,1747908645472,-151.0,0.00032876,7]
[361955455,1747908645482,-226.8,0.00032876,7]
[361955457,1747908645492,-420.0,0.00032876,5]
[361955459,1747908645503,-551.83,0.00032876,5]
[361955461,1747908645514,-420.0,0.00032876,5]
[361955463,1747908645524,-420.0,0.00032876,5]
[361955465,1747908645534,-420.0,0.00032876,5]
[361955467,1747908645544,-420.0,0.00032876,5]
[361955469,1747908645554,-446.75,0.00032876,5]
[361955471,1747908645563,-1308.06,0.00032876,5]
[361955473,1747908645574,-442.82,0.00032876,5]
[361955475,1747908645584,-453.77,0.00032876,5]
[361955477,1747908645594,-592.31,0.00032876,5]
[361955479,1747908645604,-565.71,0.00032876,5]
[361955481,1747908645615,-422.18324985,0.00032876,5]
[361955483,1747908645625,-420.0,0.00032876,5]
[361955485,1747908645634,-420.69924524,0.00032876,5]
[361955487,1747908645644,-151.330502,0.00032876,7]
[361955490,1747908645654,-422.6,0.00032876,5]
[361955492,1747908645664,-420.0,0.00032876,5]
[361955494,1747908645673,-420.0,0.00032876,5]
[361955496,1747908645683,-716.43,0.00032876,5]
[361955498,1747908645692,-1051.62,0.00032876,5]
[361955500,1747908645702,-421.75590579,0.00032876,5]
[361955502,1747908645713,-614.22,0.00032876,5]
[361955504,1747908645724,-531.50472257,0.00032876,5]
[361955506,1747908645734,-421.88852498,0.00032876,5]
[361955508,1747908645743,-420.88793422,0.00032876,5]
[361955510,1747908645752,-420.0,0.00032876,5]
[361955512,1747908645763,-420.0,0.00032876,5]
[361955514,1747908645772,-420.0,0.00032876,5]
[361955516,1747908645782,-421.40624821,0.00032876,5]
[361955518,1747908645791,-151.0,0.00032876,7]
[361955520,1747908645801,-707.67,0.00032876,5]
[361955522,1747908645811,-151.9998,0.00032876,7]
[361955524,1747908645820,-420.0,0.00032876,5]
[361955526,1747908645830,-406.08698931,0.00032876,5]
[361955528,1747908645839,-474.0,0.00032876,5]
[361955530,1747908645849,-420.0,0.00032876,5]
[361955532,1747908645859,-420.0,0.00032876,5]
[361955534,1747908645868,-420.0,0.00032876,5]
[361955536,1747908645880,-420.51880048,0.00032876,5]
[361955538,1747908645894,-151.0,0.00032876,7]
[361955540,1747908645905,-513.35,0.00032876,5]
[361955542,1747908645914,-151.0,0.00032876,7]
[361955544,1747908645925,-420.0,0.00032876,5]
[361955546,1747908645934,-1031.7,0.00032876,5]
[361955548,1747908645944,-420.0,0.00032876,5]
[361955550,1747908645954,-420.0,0.00032876,5]
[361955552,1747908645964,-420.7394882,0.00032876,5]
[361955554,1747908645973,-479.1918883,0.00032876,5]
[361955556,1747908645982,-420.0,0.00032876,5]
[361955558,1747908645991,-869.18,0.00032876,5]
[361955560,1747908646001,-420.0,0.00032876,5]
[361955562,1747908646010,-420.0,0.00032876,5]
[361955564,1747908646021,-420.0,0.00032876,5]
[361955566,1747908646031,-420.0,0.00032876,5]
[361955568,1747908646040,-420.0,0.00032876,5]
[361955570,1747908646050,-1230.2,0.00032876,5]
[361955572,1747908646059,-420.0,0.00032876,5]
[361955574,1747908646069,-420.0,0.00032876,5]
[361955576,1747908646079,-420.0,0.00032876,5]
[361955578,1747908646089,-151.0,0.00032876,7]
[361955580,1747908646099,-420.0,0.00032876,5]
[361955582,1747908646108,-151.0,0.00032876,7]
[361955612,1747908646476,-420.0,0.00032876,5]
[361955616,1747908646512,-544.86913915,0.00032876,5]
[361955619,1747908646523,-631.97,0.00032876,5]
[361955620,1747908646532,-904.81,0.00032876,5]
[361955622,1747908646542,-420.0,0.00032876,5]
[361955624,1747908646552,-420.0,0.00032876,5]
[361955626,1747908646562,-973.45,0.00032876,5]
[361955628,1747908646571,-560.76,0.00032876,5]
[361955630,1747908646581,-1298.27,0.00032876,5]
[361955632,1747908646590,-420.0,0.00032876,5]
[361955635,1747908646600,-530.84213763,0.00032876,5]
[361955637,1747908646611,-472.18,0.00032876,5]
[361955639,1747908646621,-420.0,0.00032876,5]
[361955641,1747908646630,-151.0,0.00032876,7]
[361955643,1747908646640,-151.0,0.00032876,7]
[361955645,1747908646649,-420.0,0.00032876,5]
[361955647,1747908646659,-420.0,0.00032876,5]
[361955649,1747908646669,-151.0,0.00032876,7]
[361955651,1747908646679,-420.0,0.00032876,5]
[361955653,1747908646689,-151.0,0.00032876,7]
[361955655,1747908646699,-152.421391,0.00032876,7]
[361955657,1747908646708,-502.99,0.00032876,5]
[361955659,1747908646719,-420.0,0.00032876,5]
[361955661,1747908646730,-153.412231,0.00032876,7]
[361955663,1747908646739,-364.63173367,0.00032876,5]
[361955665,1747908646749,-659.82,0.00032876,5]
[361955667,1747908646758,-420.66579228,0.00032876,5]
[361955669,1747908646768,-420.0,0.00032876,5]
[361955671,1747908646777,-420.0,0.00032876,5]
[361955673,1747908646787,-420.0,0.00032876,5]
[361955675,1747908646796,-420.0,0.00032876,5]
[361955677,1747908646807,-420.0,0.00032876,5]
[361955679,1747908646816,-420.0,0.00032876,5]
[361955681,1747908646826,-153.859749,0.00032876,7]
[361955683,1747908646835,-420.0,0.00032876,5]
[361955685,1747908646844,-420.0,0.00032876,5]
[361955687,1747908646854,-420.0,0.00032876,5]
[361955689,1747908646864,-151.0,0.00032876,7]
[361955691,1747908646874,-504.54,0.00032876,5]
[361955693,1747908646883,-152.26712,0.00032876,7]
[361955695,1747908646893,-420.0,0.00032876,5]
[361955697,1747908646903,-1306.88,0.00032876,5]
[361955699,1747908646913,-597.3,0.00032876,5]
[361955701,1747908646924,-420.0,0.00032876,5]
[361955703,1747908646934,-152.118489,0.00032876,7]
[361955705,1747908646943,-420.0,0.00032876,5]
[361955707,1747908646954,-737.91,0.00032876,5]
[361955709,1747908646964,-477.27,0.00032876,5]
[361955711,1747908646974,-852.83,0.00032876,5]
[361955713,1747908646983,-977.52,0.00032876,5]
[361955715,1747908646993,-420.0,0.00032876,5]
[361955717,1747908647003,-151.0,0.00032876,7]
[361955719,1747908647012,-256.360568,0.00032876,7]
[361955721,1747908647022,-420.0,0.00032876,5]
[361955723,1747908647031,-913.57,0.00032876,5]
[361955725,1747908647041,-420.0,0.00032876,5]
[361955727,1747908647051,-420.0,0.00032876,5]
[361955729,1747908647060,-420.0,0.00032876,5]
[361955731,1747908647069,-420.0,0.00032876,5]
[361955733,1747908647079,-420.0,0.00032876,5]
[361955735,1747908647088,-420.0,0.00032876,5]
[361955737,1747908647097,-420.0,0.00032876,5]
[361955739,1747908647107,-420.0,0.00032876,5]
[361955741,1747908647116,-420.0,0.00032876,5]
[361955743,1747908647126,-729.7,0.00032876,5]
[361955745,1747908647135,-518.27,0.00032876,5]
[361955747,1747908647145,-420.0,0.00032876,5]
[361955749,1747908647154,-420.0,0.00032876,5]
[361955751,1747908647163,-803.63,0.00032876,5]
[361955753,1747908647173,-420.0,0.00032876,5]
[361955755,1747908647182,-1159.65,0.00032876,5]
[361955757,1747908647192,-420.0,0.00032876,5]
[361955759,1747908647202,-420.0,0.00032876,5]
[361955761,1747908647212,-420.0,0.00032876,5]
[361955763,1747908647222,-500.0,0.00032876,5]
[361955765,1747908647231,-500.0,0.00032876,5]
[361955767,1747908647241,-500.0,0.00032876,5]
[361955769,1747908647250,-420.0,0.00032876,5]
[361955771,1747908647259,-500.0,0.00032876,5]
[361955773,1747908647268,-200.0,0.00032876,2]
[361955775,1747908647278,-500.0,0.00032876,5]
[361955777,1747908647287,-500.0,0.00032876,5]
[361955779,1747908647297,-500.0,0.00032876,5]
[361955781,1747908647307,-500.0,0.00032876,5]
[361955783,1747908647316,-500.0,0.00032876,5]
[361955785,1747908647326,-469.53,0.00032876,5]
[361955787,1747908647339,-433.79238719,0.00032876,5]
[361955789,1747908647349,-865.39,0.00032876,5]
[361955791,1747908647358,-420.0,0.00032876,5]
[361955793,1747908647368,-2646.74,0.00032876,3]
[361955795,1747908647379,-478.39,0.00032876,5]
[361955798,1747908647388,-423.60992956,0.00032876,5]
[361955800,1747908647399,-420.0,0.00032876,5]